Department Family,Entity,Date Paid,Expense Type,Expense Area,Supplier,Transaction Number,AP Amount
Department of Health,East London NHS Foundation Trust,03/11/2014,Rent,Community Health Newham Directorate,BARTS HEALTH NHS TRUST,11004207,"236,665.62"
Department of Health,East London NHS Foundation Trust,03/11/2014,Rent,Community Health Newham Directorate,NHS PROPERTY SERVICES LTD,11014406,"39,328.48"
Department of Health,East London NHS Foundation Trust,03/11/2014,Rent,Community Health Newham Directorate,NHS PROPERTY SERVICES LTD,11014425,"178,625.39"
Department of Health,East London NHS Foundation Trust,03/11/2014,Rent,Community Health Newham Directorate,NHS PROPERTY SERVICES LTD,11014452,"55,456.76"
Department of Health,East London NHS Foundation Trust,03/11/2014,Rent,Community Health Newham Directorate,NHS PROPERTY SERVICES LTD,11014469,"51,968.63"
Department of Health,East London NHS Foundation Trust,03/11/2014,Rent,Community Health Newham Directorate,NHS PROPERTY SERVICES LTD,11014481,"27,156.15"
Department of Health,East London NHS Foundation Trust,03/11/2014,Rent,Community Health Newham Directorate,NHS PROPERTY SERVICES LTD,11014499,"35,093.74"
Department of Health,East London NHS Foundation Trust,03/11/2014,SLA Charges,Trustwide,BARTS HEALTH NHS TRUST,10910744,"80,773.00"
Department of Health,East London NHS Foundation Trust,03/11/2014,SLA Charges,Trustwide,BARTS HEALTH NHS TRUST,10910759,"80,773.00"
Department of Health,East London NHS Foundation Trust,03/11/2014,SLA Charges,Community Health Newham Directorate,BARTS HEALTH NHS TRUST,11013464,"151,461.00"
Department of Health,East London NHS Foundation Trust,05/11/2014,Drug Supplies,Pharmacy Department,JANSSEN CILAG LTD,11083848,"47,556.38"
Department of Health,East London NHS Foundation Trust,05/11/2014,General Practitioners,Community Health Newham Directorate,NEWHAM GP CO-OPERATIVE LTD,10924762,"71,636.38"
Department of Health,East London NHS Foundation Trust,12/11/2014,Rent,City and Hackeny Directorate,LOOK AHEAD HOUSING & CARE LTD,11221076,"108,563.75"
Department of Health,East London NHS Foundation Trust,12/11/2014,Unitary Charge,Estates,GH NEWHAM LTD,11160786,"443,144.56"
Department of Health,East London NHS Foundation Trust,13/11/2014,SLA Charges,Pharmacy Department,NHS BUSINESS SERVICES AUTHORITY,11128806,"43,514.75"
Department of Health,East London NHS Foundation Trust,14/11/2014,Rates,Estates,LONDON BOROUGH OF TOWER HAMLETS,10722048,"46,601.28"
Department of Health,East London NHS Foundation Trust,14/11/2014,Rates,Estates,LONDON BOROUGH OF TOWER HAMLETS,10752011,"186,995.00"
Department of Health,East London NHS Foundation Trust,14/11/2014,Rent,Community Health Newham Directorate,EAST THAMES GROUP LTD,10721850,"27,158.35"
Department of Health,East London NHS Foundation Trust,19/11/2014,Creche Expenses,Corporate Directorate,CHILDCARE VOUCHERS LTD,11285707,"29,758.41"
Department of Health,East London NHS Foundation Trust,26/11/2014,Computer Hardware Purch,Finance Directorate,INSIGHT DIRECT (UK) LTD,10954834,"31,364.92"
Department of Health,East London NHS Foundation Trust,26/11/2014,Computer Software/License,Corporate Directorate,DATIX LTD,11357955,"30,141.00"
Department of Health,East London NHS Foundation Trust,26/11/2014,Photocopying costs,Corporate Directorate,XEROX (UK) LTD,11208480,"43,653.12"
Department of Health,East London NHS Foundation Trust,26/11/2014,Stationery and Office Supplies,Corporate Directorate,OFFICE DEPOT UK LTD,11340323,"30,093.20"
Department of Health,East London NHS Foundation Trust,28/11/2014,Data Lines,Assertive Outreach Serv.,VIRGIN MEDIA BUSINESS LTD,11371964,"1,814.38"
Department of Health,East London NHS Foundation Trust,28/11/2014,Data Lines,C&H South CMHT,VIRGIN MEDIA BUSINESS LTD,11371964,"9,071.89"
Department of Health,East London NHS Foundation Trust,28/11/2014,Data Lines,C-Barnet Speech - Paeds,VIRGIN MEDIA BUSINESS LTD,11371964,"14,117.81"
Department of Health,East London NHS Foundation Trust,28/11/2014,Data Lines,C-GREENHOUSE - C&H,VIRGIN MEDIA BUSINESS LTD,11371964,726.71
Department of Health,East London NHS Foundation Trust,28/11/2014,Data Lines,CFCS,VIRGIN MEDIA BUSINESS LTD,11371964,"7,573.23"
Department of Health,East London NHS Foundation Trust,28/11/2014,Data Lines,Community Health Newham Directorate,VIRGIN MEDIA BUSINESS LTD,11371964,"1,814.33"
Department of Health,East London NHS Foundation Trust,28/11/2014,Data Lines,Community Health Newham Directorate,VIRGIN MEDIA BUSINESS LTD,11371964,"1,814.33"
Department of Health,East London NHS Foundation Trust,28/11/2014,Data Lines,Community Health Newham Directorate,VIRGIN MEDIA BUSINESS LTD,11371964,"1,814.33"
Department of Health,East London NHS Foundation Trust,28/11/2014,Data Lines,Community Health Newham Directorate,VIRGIN MEDIA BUSINESS LTD,11371964,"1,814.33"
Department of Health,East London NHS Foundation Trust,28/11/2014,Data Lines,Community Health Newham Directorate,VIRGIN MEDIA BUSINESS LTD,11371964,"1,814.33"
Department of Health,East London NHS Foundation Trust,28/11/2014,Data Lines,ICT Team,VIRGIN MEDIA BUSINESS LTD,11371964,"8,299.94"
Department of Health,East London NHS Foundation Trust,28/11/2014,Data Lines,CMHT North East,VIRGIN MEDIA BUSINESS LTD,11371964,"3,423.26"
Department of Health,East London NHS Foundation Trust,28/11/2014,Data Lines,CMHT South West,VIRGIN MEDIA BUSINESS LTD,11371964,"4,149.97"
Department of Health,East London NHS Foundation Trust,28/11/2014,Data Lines,Comm. Rehab Team ADULT,VIRGIN MEDIA BUSINESS LTD,11371964,"2,074.98"
Department of Health,East London NHS Foundation Trust,28/11/2014,Data Lines,Comm. Rehab Team ADULT MH,VIRGIN MEDIA BUSINESS LTD,11371964,"1,814.38"
Department of Health,East London NHS Foundation Trust,28/11/2014,Data Lines,ICT Team,VIRGIN MEDIA BUSINESS LTD,11371964,"5,017.98"
Department of Health,East London NHS Foundation Trust,28/11/2014,Data Lines,Data and Comms Services,VIRGIN MEDIA BUSINESS LTD,11371964,"138,137.29"
Department of Health,East London NHS Foundation Trust,28/11/2014,Data Lines,EIS C and H - Equip,VIRGIN MEDIA BUSINESS LTD,11371964,"2,074.98"
Department of Health,East London NHS Foundation Trust,28/11/2014,Data Lines,Forensic Post and Telecom,VIRGIN MEDIA BUSINESS LTD,11371964,"9,071.64"
Department of Health,East London NHS Foundation Trust,28/11/2014,Data Lines,HQ Admin and Secretariat,VIRGIN MEDIA BUSINESS LTD,11371964,"3,724.37"
Department of Health,East London NHS Foundation Trust,28/11/2014,Data Lines,MH: Human Resources,VIRGIN MEDIA BUSINESS LTD,11371964,726.71
Department of Health,East London NHS Foundation Trust,28/11/2014,Data Lines,Community Health Newham Directorate,VIRGIN MEDIA BUSINESS LTD,11371964,"13,857.48"
Department of Health,East London NHS Foundation Trust,28/11/2014,Data Lines,Community Health Newham Directorate,VIRGIN MEDIA BUSINESS LTD,11371964,"9,072.06"
Department of Health,East London NHS Foundation Trust,28/11/2014,Data Lines,Community Health Newham Directorate,VIRGIN MEDIA BUSINESS LTD,11371964,"71,446.48"
Department of Health,East London NHS Foundation Trust,28/11/2014,Data Lines,Richmond IAPT,VIRGIN MEDIA BUSINESS LTD,11371964,"3,423.26"
Department of Health,East London NHS Foundation Trust,28/11/2014,Data Lines,SPL Psychotherapy Service,VIRGIN MEDIA BUSINESS LTD,11371964,864.64
Department of Health,East London NHS Foundation Trust,28/11/2014,Data Lines,TH AMH Clozapine Clinic,VIRGIN MEDIA BUSINESS LTD,11371964,"1,814.38"
Department of Health,East London NHS Foundation Trust,28/11/2014,Data Lines,TH AMH Stepney and Wapping CMHT,VIRGIN MEDIA BUSINESS LTD,11371964,"4,149.97"
Department of Health,East London NHS Foundation Trust,28/11/2014,Data Lines,TH AMH Three Colts Lane,VIRGIN MEDIA BUSINESS LTD,11371964,"9,899.70"
Department of Health,East London NHS Foundation Trust,28/11/2014,Data Lines,TH Community CAMHS,VIRGIN MEDIA BUSINESS LTD,11371964,"6,440.40"
Department of Health,East London NHS Foundation Trust,28/11/2014,Data Lines,TH MHCOP CMHT,VIRGIN MEDIA BUSINESS LTD,11371964,"1,814.38"
Department of Health,East London NHS Foundation Trust,28/11/2014,Data Lines,Wolfsen Hse Support Services,VIRGIN MEDIA BUSINESS LTD,11371964,"9,071.64"
Department of Health,East London NHS Foundation Trust,28/11/2014,Rent,Community Health Newham Directorate,EAST THAMES GROUP LTD,11390801,"28,063.63"
Department of Health,East London NHS Foundation Trust,28/11/2014,SLA Charges,EF Wolfson House,G4S FACILITIES MANAGEMENT (UK) LTD,11391077,"82,360.64"
Department of Health,East London NHS Foundation Trust,28/11/2014,SLA Charges,EF John Howard Facilities,G4S FACILITIES MANAGEMENT (UK) LTD,11406659,"214,683.37"
Department of Health,East London NHS Foundation Trust,28/11/2014,SLA Charges,Community Health Newham Directorate,G4S FACILITIES MANAGEMENT (UK) LTD,11406674,"242,942.50"
